fUST/lending_fUST_20251114
["ID","MTS","AMOUNT","RATE_DAILY","PERIOD"]
[393946133,1763125831803,-172.42364671,0.00025261,2]
[393946135,1763125831814,-1312.0,0.00025317,2]
[393946137,1763125831823,-206.56325989,0.00026003,2]
[393946138,1763125831832,-856.1408683,0.00026103,2]
[393946141,1763125831842,-460.45791,0.00026676,2]
[393946142,1763125831858,-206.56325989,0.00026938,2]
[393946144,1763125831868,-1000.0,0.00027182,30]
[393946146,1763125831878,-203.45990312,0.00027261,2]
[393946148,1763125831887,-1200.0,0.00027657,2]
[393946150,1763125831897,-380.0,0.00027658,2]
[393946152,1763125831906,-24434.18121666,0.00027873,2]
[393946236,1763125837715,-25565.81878334,0.00027873,2]
[393946237,1763125837724,-206.56325989,0.00027873,2]
[393946238,1763125837733,-428.96676064,0.00027877,2]
[393946239,1763125837742,-428.96676063,0.00027883,2]
[393946240,1763125837751,-300.0,0.00027886,2]
[393946241,1763125837760,-300.0,0.00027886,2]
[393946242,1763125837769,-1200.0,0.00027887,2]
[393946243,1763125837779,-428.96676063,0.00027888,2]
[393946244,1763125837788,-2346.04,0.00027967,10]
[393946245,1763125837797,-1955.04,0.00027967,10]
[393946246,1763125837807,-674.48,0.00027967,3]
[393946247,1763125837816,-500.0,0.00027973,5]
[393946248,1763125837825,-500.0,0.00027973,2]
[393946249,1763125837834,-500.0,0.00027973,5]
[393946250,1763125837844,-500.0,0.00027973,5]
[393946251,1763125837855,-466.04735602,0.00027973,5]
[393946252,1763125837864,-500.0,0.00027973,5]
[393946253,1763125837874,-500.0,0.00027973,5]
[393946254,1763125837883,-523.17483354,0.00027973,5]
[393946255,1763125837892,-500.0,0.00027973,3]
[393946256,1763125837901,-500.0,0.00027973,5]
[393946257,1763125837911,-253.68317521,0.00027976,2]
[393946258,1763125837920,-500.0,0.00027976,2]
[393946259,1763125837930,-608.64897603,0.00027976,2]
[393946260,1763125837939,-238.66965075,0.00027977,2]
[393946261,1763125837948,-500.0,0.00027977,2]
[393946262,1763125838047,-500.0,0.00027977,2]
[393946263,1763125838057,-500.0,0.00027977,2]
[393946264,1763125838066,-500.0,0.00027977,2]
[393946265,1763125838078,-500.0,0.00027977,2]
[393946266,1763125838088,-500.0,0.00027977,2]
[393946267,1763125838097,-500.0,0.00027977,2]
[393946268,1763125838109,-500.0,0.00027977,2]
[393946269,1763125838119,-500.0,0.00027977,2]
[393946270,1763125838128,-500.0,0.00027977,2]
[393946271,1763125838137,-500.0,0.00027977,2]
[393946272,1763125838147,-500.0,0.00027977,2]
[393946273,1763125838157,-500.0,0.00027977,2]
[393946274,1763125838166,-500.0,0.00027977,2]
[393946275,1763125838176,-500.0,0.00027977,2]
[393946276,1763125838185,-500.0,0.00027977,2]
[393946277,1763125838194,-500.0,0.00027977,2]
[393946278,1763125838204,-500.0,0.00027977,2]
[393946279,1763125838213,-500.0,0.00027977,2]
[393946280,1763125838222,-500.0,0.00027977,2]
[393946281,1763125838231,-500.0,0.00027977,2]
[393946282,1763125838242,-500.0,0.00027977,2]
[393946283,1763125838251,-339.27340455,0.00027977,2]
[393946284,1763125838260,-500.0,0.00027977,2]
[393946285,1763125838270,-500.0,0.00027977,2]
[393946286,1763125838279,-500.0,0.00027977,2]
[393946287,1763125838288,-500.0,0.00027977,2]
[393946288,1763125838297,-500.0,0.00027977,2]
[393946289,1763125838306,-620.6589015,0.00027977,2]
[393946290,1763125838316,-500.0,0.00027977,2]
[393946291,1763125838325,-500.0,0.00027977,2]
[393946292,1763125838334,-500.0,0.00027977,2]
[393946293,1763125838343,-500.0,0.00027977,2]
[393946294,1763125838354,-500.0,0.00027977,2]
[393946295,1763125838364,-500.0,0.00027977,2]
[393946296,1763125838372,-500.0,0.00027977,2]
[393946297,1763125838382,-500.0,0.00027977,2]
[393946298,1763125838391,-500.0,0.00027977,2]
[393946299,1763125838400,-500.0,0.00027977,2]
[393946300,1763125838410,-500.0,0.00027977,2]
[393946301,1763125838420,-500.0,0.00027977,2]
[393946302,1763125838429,-460.64336923,0.00027977,2]
[393946303,1763125838439,-500.0,0.00027977,2]
[393946304,1763125838449,-500.0,0.00027977,2]
[393946305,1763125838458,-500.0,0.00027977,2]
[393946306,1763125838468,-500.0,0.00027977,2]
[393946307,1763125838478,-500.0,0.00027977,2]
[393946308,1763125838488,-500.0,0.00027977,2]
[393946309,1763125838498,-118.08365323,0.00027977,2]
[393946310,1763125838514,-381.91634677,0.00027977,2]
[393946311,1763125838525,-500.0,0.00027977,2]
[393946312,1763125838535,-73.34239466,0.00027977,2]
[393946313,1763125838564,-318.66722773,0.00027977,2]
[393946314,1763125838576,-107.99037761,0.00027977,2]
[393946315,1763125838586,-500.0,0.00027977,2]
[393946316,1763125838597,-500.0,0.00027977,2]
[393946317,1763125838613,-500.0,0.00027977,2]
[393946318,1763125838624,-500.0,0.00027977,2]
[393946319,1763125838634,-500.0,0.00027977,2]
[393946320,1763125838644,-500.0,0.00027977,2]
[393946321,1763125838655,-500.0,0.00027977,2]
[393946322,1763125838665,-500.0,0.00027977,2]
[393946323,1763125838675,-500.0,0.00027977,2]
[393946324,1763125838685,-500.0,0.00027977,2]
[393946325,1763125838695,-500.0,0.00027977,2]
[393946326,1763125838705,-500.0,0.00027977,2]
[393946327,1763125838714,-500.0,0.00027977,2]
[393946328,1763125838724,-500.0,0.00027977,2]
[393946329,1763125838733,-500.0,0.00027977,2]
[393946330,1763125838743,-465.26524548,0.00027977,2]
[393946331,1763125838753,-500.0,0.00027977,2]
[393946332,1763125838763,-500.0,0.00027977,2]
[393946333,1763125838773,-500.0,0.00027977,2]
[393946334,1763125838782,-500.0,0.00027977,2]
[393946335,1763125838792,-500.0,0.00027977,2]
[393946336,1763125838802,-500.0,0.00027977,2]
[393946337,1763125838812,-500.0,0.00027977,2]
[393946338,1763125838822,-500.0,0.00027977,2]
[393946339,1763125838832,-500.0,0.00027977,2]
[393946340,1763125838842,-500.0,0.00027977,2]
[393946341,1763125838851,-500.0,0.00027977,2]
[393946342,1763125838866,-500.0,0.00027977,2]
[393946343,1763125838876,-500.0,0.00027977,2]
[393946344,1763125838886,-500.0,0.00027977,2]
[393946345,1763125838896,-500.0,0.00027977,2]
[393946346,1763125838906,-500.0,0.00027977,2]
[393946347,1763125838916,-500.0,0.00027977,2]
[393946348,1763125838927,-500.0,0.00027977,2]
[393946349,1763125838936,-202.86733068,0.00027977,2]
[393946350,1763125838946,-500.0,0.00027977,2]
[393946351,1763125838956,-500.0,0.00027977,2]
[393946352,1763125838966,-500.0,0.00027977,2]
[393946353,1763125838981,-500.0,0.00027977,2]
[393946354,1763125838997,-500.0,0.00027977,2]
[393946355,1763125839012,-500.0,0.00027977,2]
[393946356,1763125839029,-500.0,0.00027977,2]
[393946357,1763125839039,-500.0,0.00027977,2]
[393946358,1763125839050,-500.0,0.00027977,2]
[393946359,1763125839060,-500.0,0.00027977,2]
[393946360,1763125839072,-500.0,0.00027977,2]
[393946361,1763125839085,-500.0,0.00027977,2]
[393946362,1763125839094,-500.0,0.00027977,2]
[393946363,1763125839106,-500.0,0.00027977,2]
[393946364,1763125839118,-500.0,0.00027977,2]
[393946365,1763125839128,-500.0,0.00027977,2]
[393946366,1763125839138,-500.0,0.00027977,2]
[393946367,1763125839150,-500.0,0.00027977,2]
[393946368,1763125839159,-500.0,0.00027977,2]
[393946369,1763125839169,-500.0,0.00027977,2]
[393946370,1763125839179,-500.0,0.00027977,2]
[393946371,1763125839188,-500.0,0.00027977,2]
[393946372,1763125839198,-299.00155165,0.00027977,2]
[393946373,1763125839207,-500.0,0.00027977,2]
[393946374,1763125839216,-500.0,0.00027977,2]
[393946375,1763125839226,-500.0,0.00027977,2]
[393946376,1763125839235,-500.0,0.00027977,2]
[393946377,1763125839244,-500.0,0.00027977,2]
[393946378,1763125839254,-500.0,0.00027977,2]
[393946379,1763125839264,-500.0,0.00027977,2]
[393946380,1763125839274,-500.0,0.00027977,2]
[393946381,1763125839283,-500.0,0.00027977,2]
[393946382,1763125839293,-500.0,0.00027977,2]
[393946383,1763125839302,-500.0,0.00027977,2]
[393946384,1763125839312,-500.0,0.00027977,2]
[393946385,1763125839322,-549.09933201,0.00027977,2]
[393946386,1763125839333,-500.0,0.00027977,2]
[393946387,1763125839342,-2037.9110464,0.00027977,2]
[393946388,1763125839351,-2037.9110464,0.00027977,2]
[393946389,1763125839364,-2037.9110464,0.00027977,2]
[393946390,1763125839374,-500.0,0.00027977,2]
[393946391,1763125839384,-2037.9110464,0.00027977,2]
[393946392,1763125839394,-500.0,0.00027977,2]
[393946393,1763125839403,-2037.9110464,0.00027977,2]
[393946395,1763125839413,-500.0,0.00027977,2]
[393946397,1763125839424,-2037.9110464,0.00027977,2]
[393946399,1763125839433,-500.0,0.00027977,2]
[393946401,1763125839442,-2037.9110464,0.00027977,2]
[393946403,1763125839452,-500.0,0.00027977,2]
[393946405,1763125839461,-2037.9110464,0.00027977,2]
[393946407,1763125839471,-500.0,0.00027977,2]
[393946408,1763125839479,-500.0,0.00027977,2]
[393946409,1763125839488,-2037.9110464,0.00027977,2]
[393946410,1763125839497,-2037.9110464,0.00027977,2]
[393946412,1763125839506,-500.0,0.00027977,2]
[393946414,1763125839516,-2037.9110464,0.00027977,2]
[393946416,1763125839526,-500.0,0.00027977,2]
[393946417,1763125839535,-500.0,0.00027977,2]
[393946418,1763125839545,-2037.9110464,0.00027977,2]
[393946419,1763125839554,-2037.9110464,0.00027977,2]
[393946420,1763125839563,-500.0,0.00027977,2]
[393946421,1763125839572,-2037.9110464,0.00027977,2]
[393946423,1763125839582,-2037.9110464,0.00027977,2]
[393946424,1763125839591,-500.0,0.00027977,2]
[393946425,1763125839600,-500.0,0.00027977,2]
[393946426,1763125839613,-2037.9110464,0.00027977,2]
[393946427,1763125839622,-274.51765572,0.00027977,2]
[393946428,1763125839631,-2037.9110464,0.00027977,2]
[393946430,1763125839641,-2037.9110464,0.00027977,2]
[393946431,1763125839651,-2037.9110464,0.00027977,2]
[393946432,1763125839659,-2037.9110464,0.00027977,2]
[393946433,1763125839669,-2037.9110464,0.00027977,2]
[393946434,1763125839678,-2037.9110464,0.00027977,2]
[393946435,1763125839687,-2037.9110464,0.00027977,2]
[393946436,1763125839696,-2037.9110464,0.00027977,2]
[393946437,1763125839705,-2037.9110464,0.00027977,2]
[393946438,1763125839714,-2037.9110464,0.00027977,2]
[393946439,1763125839785,-2037.9110464,0.00027977,2]
[393946440,1763125839803,-500.0,0.00027977,2]
[393946441,1763125839813,-2037.9110464,0.00027977,2]
[393946442,1763125839823,-2037.9110464,0.00027977,2]
[393946443,1763125839838,-2037.9110464,0.00027977,2]
[393946444,1763125839851,-2037.9110464,0.00027977,2]
[393946445,1763125839866,-2037.9110464,0.00027977,2]
[393946446,1763125839878,-2037.9110464,0.00027977,2]
[393946447,1763125839888,-2037.9110464,0.00027977,2]
[393946448,1763125839899,-2037.9110464,0.00027977,2]
[393946449,1763125839909,-2037.9110464,0.00027977,2]
[393946450,1763125839919,-2037.9110464,0.00027977,2]
[393946451,1763125839930,-2139.80659871,0.00027977,2]
[393946452,1763125839940,-2139.80659871,0.00027977,2]
[393946453,1763125839949,-2139.80659871,0.00027977,2]
[393946454,1763125839958,-2139.80659871,0.00027977,2]
[393946455,1763125839968,-2139.80659871,0.00027977,2]
[393946456,1763125839977,-2139.80659871,0.00027977,2]
[393946457,1763125839986,-2139.80659871,0.00027977,2]
[393946458,1763125839995,-2139.80659871,0.00027977,2]
[393946459,1763125840005,-2139.80659869,0.00027977,2]
[393946460,1763125840015,-77072.0549203,0.00027978,2]
[393946461,1763125840026,-6702.92,0.00028,7]
[393946462,1763125840035,-503.81842558,0.0002845,5]
[393946463,1763125840044,-1000.0,0.00028521,5]
[393946464,1763125840053,-473.45832703,0.00028521,5]
[393946465,1763125840063,-190.88016885,0.00028521,5]
[393946466,1763125840073,-1000.0,0.00028521,5]
[393946467,1763125840086,-300.0,0.00028548,30]
[393946468,1763125840096,-300.0,0.00028548,30]
[393946469,1763125840105,-300.0,0.00028548,30]
[393946470,1763125840115,-300.0,0.00028548,30]
[393946471,1763125840124,-300.0,0.00028548,30]
[393946472,1763125840134,-300.0,0.00028548,30]
[393946473,1763125840143,-300.0,0.00028548,30]
[393946474,1763125840154,-300.0,0.00028548,30]
[393946475,1763125840163,-300.0,0.00028548,30]
[393946476,1763125840172,-300.0,0.00028548,30]
[393946477,1763125840181,-300.0,0.00028548,30]
[393946478,1763125840190,-300.0,0.00028548,30]
[393946479,1763125840200,-300.0,0.00028548,30]
[393946480,1763125840209,-300.0,0.00028548,30]
[393946481,1763125840218,-300.0,0.00028548,30]
[393946482,1763125840228,-600.0,0.00028548,30]
[393946483,1763125840237,-507.54180624,0.000286,5]
[393946484,1763125840246,-500.0,0.000286,5]
[393946485,1763125840255,-500.0,0.000286,5]
[393946486,1763125840263,-281.59685328,0.000286,5]
[393946487,1763125840273,-492.78,0.00028898,5]
[393946488,1763125840283,-500.0,0.00028973,5]
[393946489,1763125840292,-162.70487399,0.00028973,5]
[393946490,1763125840301,-500.14168158,0.00028973,5]
[393946491,1763125840310,-25690.6849734,0.00028988,2]
[393946492,1763125840319,-982.87595568,0.00029068,5]
[393946493,1763125840329,-504.60684698,0.00029148,5]
[393946494,1763125840338,-234.49615953,0.00029261,2]
[393946495,1763125840347,-188.62076018,0.00029373,2]
[393946496,1763125840357,-413.0,0.00029437,2]
[393946497,1763125840367,-500.0,0.00029558,20]
[393946498,1763125840376,-500.0,0.00029558,20]
[393946499,1763125840385,-500.0,0.00029558,20]
[393946500,1763125840395,-500.0,0.00029558,20]
[393946501,1763125840404,-500.0,0.00029558,20]
[393946502,1763125840413,-2583.89,0.00029572,2]
[393946503,1763125840422,-2583.89,0.00029572,2]
[393946504,1763125840431,-281.4837284,0.00029572,20]
[393946505,1763125840441,-503.19168683,0.00029573,5]
[393946506,1763125840450,-500.0,0.00029573,5]
[393946507,1763125840460,-500.0,0.00029573,5]
[393946508,1763125840469,-500.0,0.00029573,5]
[393946509,1763125840478,-513.32461506,0.00029573,5]
[393946510,1763125840487,-150.35031034,0.00029573,5]
[393946511,1763125840497,-300.55067029,0.00029573,5]
[393946512,1763125840506,-500.0,0.00029573,5]
[393946513,1763125840516,-500.0,0.00029573,5]
[393946514,1763125840525,-2583.89,0.00029577,2]
[393946515,1763125840534,-2583.89,0.00029577,2]
[393946516,1763125840543,-2583.89,0.00029577,2]
[393946517,1763125840553,-2583.89,0.00029577,2]
[393946518,1763125840562,-2583.89,0.00029578,2]
[393946519,1763125840571,-2583.89,0.00029578,2]
[393946520,1763125840581,-25690.6849734,0.00029579,2]
[393946521,1763125840590,-2583.89,0.00029587,2]
[393946522,1763125840599,-2583.89,0.00029587,2]
[393946523,1763125840611,-2583.89,0.00029587,2]
[393946524,1763125840620,-2583.89,0.00029587,2]
[393946525,1763125840630,-2583.89,0.00029587,2]
[393946526,1763125840639,-2583.89,0.00029587,2]
[393946527,1763125840648,-2583.89,0.00029587,2]
[393946528,1763125840657,-2583.89,0.00029587,2]
[393946529,1763125840666,-2583.89,0.00029588,2]
[393946530,1763125840675,-31203.4964407,0.00029589,2]
[393946531,1763125840685,-155.12,0.000296,7]
[393946532,1763125840694,-856.1408683,0.00029901,2]
[393946533,1763125840703,-21518.89174467,0.0002999,2]
[393946534,1763125840712,-400.0,0.00030011,2]
[393946535,1763125840722,-25690.6849734,0.00030111,2]
[393946536,1763125840731,-420.0,0.0003012,2]
[393946537,1763125840740,-1113.13758489,0.00030121,5]
[393946538,1763125840749,-1000.0,0.00030121,5]
[393946539,1763125840758,-1000.0,0.00030121,5]
[393946540,1763125840767,-1000.0,0.00030121,5]
[393946541,1763125840776,-400.0,0.00030121,2]
[393946542,1763125840785,-220.32219446,0.00030173,5]
[393946543,1763125840795,-2583.89,0.00030179,2]
[393946544,1763125840804,-262.89628344,0.00030668,5]
[393946545,1763125840813,-500.0,0.00030668,5]
[393946546,1763125840822,-1500.0,0.00030668,5]
[393946547,1763125840832,-465.06690694,0.00030973,5]
[393946548,1763125840841,-250.0,0.00030984,2]
[393946549,1763125840850,-250.0,0.00030984,2]
[393946550,1763125840861,-2583.89,0.00031143,2]
[393946551,1763125840870,-2583.89,0.00031143,2]
[393946552,1763125840879,-2583.89,0.00031143,2]
[393946553,1763125840888,-2583.89,0.00031143,2]
[393946554,1763125840898,-2583.89,0.00031143,2]
[393946555,1763125840907,-2583.908608,0.00031143,2]
[393946556,1763125840916,-6702.92,0.000312,7]
[393946557,1763125840925,-500.0,0.00031216,5]
[393946558,1763125840934,-265.53241594,0.00031261,2]
[393946559,1763125840944,-720.0,0.00031403,30]
[393946560,1763125840953,-216.921,0.00031403,2]
[393946561,1763125840962,-152.417,0.00031403,2]
[393946562,1763125840971,-150.0,0.00031403,2]
[393946563,1763125840979,-262.26,0.00031403,2]
[393946564,1763125840988,-155.167,0.00031403,2]
[393946565,1763125840996,-458.0,0.00031584,2]
[393946566,1763125841005,-460.0,0.00031761,2]
[393946567,1763125841014,-458.0,0.00031798,2]
[393946568,1763125841022,-913.27,0.000318,2]
[393946569,1763125841031,-151.569314,0.000319,2]
[393946570,1763125841040,-458.0,0.00031902,2]
[393946571,1763125841048,-458.0,0.00031924,2]
[393946572,1763125841058,-460.0,0.00032151,7]
[393946573,1763125841066,-458.0,0.00032209,2]
[393946574,1763125841075,-155.12,0.000323,7]
[393946575,1763125841088,-458.0,0.00032372,2]
[393946576,1763125841096,-281.336,0.00032412,32]
[393946577,1763125841106,-413.0,0.00032437,2]
[393946578,1763125841115,-458.0,0.00032483,2]
[393946579,1763125841123,-458.0,0.000325,2]
[393946580,1763125841132,-587.0,0.00032534,2]
[393946581,1763125841140,-458.0,0.00032549,2]
[393946582,1763125841149,-460.0,0.00032611,2]
[393946583,1763125841160,-462.0,0.00032754,2]
[393946584,1763125841169,-151.54740467,0.00032764,2]
[393946585,1763125841178,-151.0,0.00032764,2]
[393946586,1763125841187,-151.0,0.00032764,2]
[393946587,1763125841195,-151.50518501,0.00032764,2]
[393946588,1763125841204,-152.24937403,0.00032764,2]
[393946589,1763125841212,-151.0,0.00032764,2]
[393946590,1763125841221,-151.0,0.00032764,2]
[393946591,1763125841230,-152.45805832,0.00032764,2]
[393946592,1763125841239,-151.0,0.00032764,2]
[393946593,1763125841248,-151.45345064,0.00032764,2]
[393946594,1763125841323,-152.45798882,0.00032764,2]
[393946595,1763125841334,-151.7717868,0.00032764,2]
[393946596,1763125841343,-500.0,0.00032764,2]
[393946597,1763125841355,-151.0,0.00032791,2]
[393946598,1763125841364,-151.0,0.00032791,2]
[393946599,1763125841373,-151.0,0.00032791,2]
[393946600,1763125841383,-151.0,0.00032791,2]
[393946601,1763125841392,-151.0,0.00032791,2]
[393946602,1763125841401,-500.0,0.00032791,2]
[393946603,1763125841410,-458.0,0.00032804,7]
[393946604,1763125841419,-151.0,0.00032819,2]
[393946605,1763125841429,-198.65747437,0.00032819,2]
[393946606,1763125841439,-151.0,0.00032819,2]
[393946607,1763125841449,-151.0,0.00032819,2]
[393946608,1763125841458,-198.0,0.00032819,2]
[393946609,1763125841467,-500.0,0.00032819,2]
[393946610,1763125841475,-151.0,0.00032846,2]
[393946611,1763125841485,-151.0,0.00032846,2]
[393946612,1763125841494,-500.0,0.00032846,2]
[393946613,1763125841503,-229.23154603,0.00032857,2]
[393946614,1763125841512,-198.0,0.00032874,2]
[393946615,1763125841522,-245.0,0.00032874,2]
[393946616,1763125841531,-500.0,0.00032874,2]
[393946617,1763125841540,-161.59,0.00032875,2]
[393946618,1763125841550,-500.0,0.00032901,2]
[393946619,1763125841559,-500.0,0.00032928,2]
[393946620,1763125841568,-500.0,0.00032956,2]
[393946621,1763125841578,-275.39840939,0.00032983,2]
[393946622,1763125841587,-458.0,0.0003305,2]
[393946623,1763125841597,-460.0,0.00033134,2]
[393946624,1763125841608,-460.45791,0.00033165,2]
[393946625,1763125841618,-296.56867235,0.00033261,120]
[393946626,1763125841628,-6702.92,0.000334,14]
[393946627,1763125841637,-458.0,0.00033479,7]
[393946628,1763125841647,-458.0,0.00033555,2]
[393946629,1763125841657,-913.27,0.000336,14]
[393946630,1763125841667,-856.1408683,0.00033699,2]
[393946631,1763125841676,-460.0,0.00033982,2]
[393946632,1763125841686,-150.0,0.00033984,2]
[393946633,1763125841696,-150.0,0.00033984,2]
[393946634,1763125841705,-458.0,0.00034246,2]
[393946635,1763125841714,-151.569314,0.00034282,31]
[393946636,1763125841724,-458.0,0.00034289,2]
[393946637,1763125841733,-155.12,0.000343,7]
[393946638,1763125841742,-458.0,0.00034341,2]
[393946639,1763125841751,-151.569314,0.00034365,31]
[393946640,1763125841761,-150.0,0.00034403,2]
[393946641,1763125841770,-150.0,0.00034403,2]
[393946642,1763125841780,-150.0,0.00034403,2]
[393946643,1763125841789,-150.0,0.00034403,2]
[393946644,1763125841799,-151.569314,0.00034448,31]
[393946645,1763125841808,-25690.6849734,0.0003452,2]
[393946646,1763125841817,-458.0,0.00034524,2]
[393946647,1763125841826,-151.569314,0.0003453,31]
[393946648,1763125841835,-864.0,0.00034543,30]
[393946649,1763125841844,-458.0,0.00034574,2]
[393946650,1763125841853,-458.0,0.00034865,2]
[393946651,1763125841864,-156.0,0.00035,120]
[393946652,1763125841873,-823.0,0.00035141,2]
[393946653,1763125841882,-327.60492876,0.00035261,120]
[393946654,1763125841892,-413.0,0.00035437,2]
[393946655,1763125841902,-323.17,0.00035864,2]
[393946656,1763125841911,-913.27,0.000359,14]
[393946657,1763125841920,-1000.0,0.00036293,10]
[393946658,1763125841930,-1000.0,0.0003643,10]
[393946659,1763125841939,-152.19,0.00036894,60]
[393946660,1763125841949,-6702.92,0.000369,14]
[393946661,1763125841958,-151.569314,0.00036908,10]
[393946662,1763125841967,-150.0,0.00036984,2]
[393946663,1763125841977,-152.19,0.00036994,60]
[393946664,1763125841986,-152.19,0.00037094,60]
[393946665,1763125842005,-152.19,0.00037194,60]
[393946666,1763125842015,-358.64118517,0.00037261,120]
[393946667,1763125842024,-152.19,0.00037294,60]
[393946668,1763125842034,-152.19,0.00037394,60]
[393946669,1763125842043,-150.0,0.00037403,2]
[393946670,1763125842053,-152.19,0.00037494,60]
[393946671,1763125842063,-856.1408683,0.00037497,2]
[393946672,1763125842076,-152.19,0.00037594,60]
[393946673,1763125842089,-155.12,0.000376,7]
[393946674,1763125842099,-152.19,0.00037694,60]
[393946675,1763125842110,-152.19,0.00037794,60]
[393946676,1763125842121,-152.19,0.00037894,60]
[393946677,1763125842130,-1152.0,0.00037956,2]
[393946678,1763125842139,-152.19,0.00037994,60]
[393946679,1763125842150,-1000.0,0.00037997,30]
[393946680,1763125842159,-160.0,0.0003809,2]
[393946681,1763125842168,-400.38245665,0.0003809,2]
[393946682,1763125842177,-160.0,0.0003809,2]
[393946683,1763125842186,-152.19,0.00038094,60]
[393946684,1763125842196,-913.27,0.000381,14]
[393946685,1763125842205,-151.569314,0.000381,60]
[393946686,1763125842214,-152.19,0.00038194,60]
[393946687,1763125842222,-152.19,0.00038294,60]
[393946688,1763125842232,-151.569314,0.0003833,60]
[393946689,1763125842241,-500.0,0.00038356,30]
[393946690,1763125842251,-152.27060374,0.00038394,120]
[393946691,1763125842261,-413.0,0.00038437,2]
[393946692,1763125842271,-306.15219,0.00038527,2]
[393946693,1763125842279,-151.569314,0.00038559,60]
[393946694,1763125842288,-302.0,0.00038634,2]
[393946695,1763125842298,-151.569314,0.00038789,60]
[393946696,1763125842307,-2000.0,0.00038797,15]
[393946697,1763125842316,-484.76,0.00038852,2]
[393946698,1763125842325,-517.6423733,0.00038856,7]
[393946699,1763125842335,-156.707205,0.00039018,60]
[393946700,1763125842344,-151.569314,0.00039018,60]
[393946701,1763125842354,-389.67744157,0.00039261,120]
[393946702,1763125842363,-247.208247,0.000395,39]
[393946703,1763125842373,-3000.0,0.00039528,120]
[393946704,1763125842382,-150.0,0.00039528,2]
[393946705,1763125842391,-250.0,0.00039528,10]
[393946706,1763125842400,-250.0,0.00039528,10]
[393946707,1763125842409,-250.0,0.00039528,10]
[393946708,1763125842418,-456.491729,0.00039528,10]
[393946709,1763125842427,-162.06859215,0.000396,120]
[393946710,1763125842436,-184.31097707,0.000396,120]
[393946711,1763125842446,-162.83550435,0.000396,120]
[393946712,1763125842459,-867.2577958,0.000396,120]
[393946713,1763125842468,-201.96566264,0.000396,120]
[393946714,1763125842477,-336.67453575,0.000396,120]
[393946715,1763125842486,-175.19528276,0.000396,120]
[393946716,1763125842495,-160.78209113,0.000396,120]
[393946717,1763125842503,-193.73862276,0.000396,120]
[393946718,1763125842513,-25690.6849734,0.00039624,3]
[393946719,1763125842522,-445.48466745,0.00039634,2]
[393946720,1763125842532,-801.87240142,0.00039634,2]
[393946721,1763125842541,-1425.55093585,0.00039634,2]
[393946722,1763125842550,-2227.42333727,0.00039634,2]
[393946723,1763125842559,-3207.48960567,0.00039634,2]
[393946724,1763125842568,-4365.74974105,0.00039634,2]
[393946725,1763125842577,-637.09063544,0.00039634,2]
[393946726,1763125842587,-1146.7631438,0.00039634,2]
[393946727,1763125842599,-2038.69003342,0.00039634,2]
[393946728,1763125842610,-3185.45317722,0.00039634,2]
[393946729,1763125842619,-4587.0525752,0.00039634,2]
[393946730,1763125842628,-460.45791,0.00039654,2]
[393946731,1763125842637,-156.0,0.000397,120]
[393946732,1763125842647,-231.1421017,0.000397,2]
[393946733,1763125842656,-250.0,0.000397,10]
[393946734,1763125842665,-485.587154,0.000398,10]
[393946735,1763125842731,-340.43684,0.0004,120]
[393946736,1763125842747,-450.8,0.000403,30]